[Event "Live Chess"]
[Site "Chess.com"]
[Date "2024.06.02"]
[Round "-"]
[White "EnnisZ"]
[Black "Purple1szed"]
[Result "1-0"]
[WhiteElo "877"]
[BlackElo "2071"]
[TimeControl "300"]
[EndTime "3:00:07 PDT"]
[Termination "EnnisZ won by resignation"]

1. e4 {[%clk 0:04:57.8]} 1... e5 {[%clk 0:04:59.4]} 2. Nf3 {[%clk 0:04:54.1]}
2... Nc6 {[%clk 0:04:58.9]} 3. d4 {[%clk 0:04:48.3]} 3... exd4 {[%clk
0:04:57.7]} 4. Bc4 {[%clk 0:04:41.8]} 4... Bc5 {[%clk 0:04:56.8]} 5. c3 {[%clk
0:04:37.9]} 5... Nf6 {[%clk 0:04:55.9]} 6. cxd4 {[%clk 0:04:34.3]} 6... Bb4+
{[%clk 0:04:53.2]} 7. Nc3 {[%clk 0:04:32.1]} 7... Nxe4 {[%clk 0:04:51.8]} 8. O-O
{[%clk 0:04:29.2]} 8... Nxc3 {[%clk 0:04:46.3]} 9. bxc3 {[%clk 0:04:26.1]} 9...
Bxc3 {[%clk 0:04:46.2]} 10. Qb3 {[%clk 0:04:21.6]} 10... O-O {[%clk 0:04:27.8]}
11. Qxc3 {[%clk 0:04:17.9]} 11... d5 {[%clk 0:04:27.6]} 12. Bd3 {[%clk
0:04:12.2]} 12... Bg4 {[%clk 0:04:26.4]} 13. Ne5 {[%clk 0:04:07.2]} 13... Nxe5
{[%clk 0:04:17.2]} 14. dxe5 {[%clk 0:04:05.4]} 14... d4 {[%clk 0:04:02.2]} 15.
Qb4 {[%clk 0:03:57.2]} 15... Re8 {[%clk 0:03:48]} 16. h3 {[%clk 0:03:52.7]}
16... Bc8 {[%clk 0:03:31.9]} 17. Bb2 {[%clk 0:03:47.7]} 17... Rxe5 {[%clk
0:03:04.3]} 18. Bxd4 {[%clk 0:03:23.7]} 18... Rd5 {[%clk 0:03:03.1]} 19. Rad1
{[%clk 0:03:16]} 19... Rxd4 {[%clk 0:03:01.6]} 20. Bxh7+ {[%clk 0:02:52.2]}
20... Kxh7 {[%clk 0:03:01.5]} 21. Rxd4 {[%clk 0:02:48.9]} 21... Qf6 {[%clk
0:02:59.9]} 22. Rfd1 {[%clk 0:02:38.3]} 22... Be6 {[%clk 0:02:36.7]} 23. Qxb7
{[%clk 0:02:28.9]} 23... Re8 {[%clk 0:02:32.5]} 24. Qxc7 {[%clk 0:02:21.4]}
24... a6 {[%clk 0:02:24.9]} 25. a4 {[%clk 0:02:16.5]} 25... Bb3 {[%clk
0:02:14.8]} 26. R1d2 {[%clk 0:02:05]} 26... Re1+ {[%clk 0:02:05]} 27. Kh2 {[%clk
0:01:57.6]} 27... g6 {[%clk 0:02:03.3]} 28. Qf4 {[%clk 0:01:50.8]} 28... Qe7
{[%clk 0:01:51.2]} 29. Qh4+ {[%clk 0:01:45]} 29... Qxh4 {[%clk 0:01:49.2]} 30.
Rxh4+ {[%clk 0:01:44.5]} 30... Kg7 {[%clk 0:01:47.9]} 31. Rd6 {[%clk 0:01:41.4]}
31... Re2 {[%clk 0:01:41.6]} 32. f3 {[%clk 0:01:33.5]} 32... a5 {[%clk
0:01:28.4]} 33. Rb6 {[%clk 0:01:28.9]} 33... Bd5 {[%clk 0:01:20.8]} 34. Kg3
{[%clk 0:01:23.9]} 34... Be6 {[%clk 0:01:02.8]} 35. Rb5 {[%clk 0:01:21.2]} 35...
Ra2 {[%clk 0:01:01.3]} 36. Rxa5 {[%clk 0:01:18.2]} 36... Ra3 {[%clk 0:00:57.2]}
37. Rc5 {[%clk 0:01:13]} 37... Ra2 {[%clk 0:00:54]} 38. a5 {[%clk 0:01:11.6]}
38... f6 {[%clk 0:00:44.7]} 39. Rc7+ {[%clk 0:01:07.8]} 39... Kg8 {[%clk
0:00:42.7]} 40. Rb4 {[%clk 0:01:03.2]} 1-0

[Event "Live Chess"]
[Site "Chess.com"]
[Date "2024.06.02"]
[Round "-"]
[White "StoreySniper"]
[Black "Ferrarifan27"]
[Result "1-0"]
[WhiteElo "2524"]
[BlackElo "2138"]
[TimeControl "300"]
[EndTime "3:00:16 PDT"]
[Termination "StoreySniper won by checkmate"]

1. e4 {[%clk 0:04:56.5]} 1... e5 {[%clk 0:04:58.3]} 2. Nc3 {[%clk 0:04:54.2]}
2... Nc6 {[%clk 0:04:53.6]} 3. g3 {[%clk 0:04:52.9]} 3... Nf6 {[%clk 0:04:47.5]}
4. Bg2 {[%clk 0:04:51.6]} 4... Bc5 {[%clk 0:04:44.5]} 5. d3 {[%clk 0:04:48.9]}
5... O-O {[%clk 0:04:43.5]} 6. h3 {[%clk 0:04:45.6]} 6... d6 {[%clk 0:04:41.4]}
7. Nge2 {[%clk 0:04:41]} 7... Be6 {[%clk 0:04:31.6]} 8. O-O {[%clk 0:04:34.1]}
8... d5 {[%clk 0:04:26.1]} 9. Kh2 {[%clk 0:04:20.8]} 9... dxe4 {[%clk
0:04:19.9]} 10. Nxe4 {[%clk 0:04:06.8]} 10... Nxe4 {[%clk 0:04:16.9]} 11. Bxe4
{[%clk 0:04:06]} 11... Bd5 {[%clk 0:04:10.8]} 12. Nc3 {[%clk 0:04:01.2]} 12...
Bxe4 {[%clk 0:04:09]} 13. Nxe4 {[%clk 0:04:00.1]} 13... Bb6 {[%clk 0:04:08.2]}
14. Be3 {[%clk 0:03:51.9]} 14... Qe7 {[%clk 0:03:55.4]} 15. Bxb6 {[%clk
0:03:22.7]} 15... axb6 {[%clk 0:03:53.8]} 16. Qd2 {[%clk 0:03:18.3]} 16... Rad8
{[%clk 0:03:48.4]} 17. Qc3 {[%clk 0:03:15.5]} 17... f5 {[%clk 0:03:39.5]} 18.
Nd2 {[%clk 0:03:12.9]} 18... e4 {[%clk 0:03:35.7]} 19. Rae1 {[%clk 0:03:00.7]}
19... Qf7 {[%clk 0:03:24.1]} 20. dxe4 {[%clk 0:02:54.5]} 20... Qxa2 {[%clk
0:03:21.8]} 21. exf5 {[%clk 0:02:40.6]} 21... Rxf5 {[%clk 0:03:17.7]} 22. Nb3
{[%clk 0:02:17.3]} 22... Qa4 {[%clk 0:03:06.8]} 23. Re2 {[%clk 0:02:04.1]} 23...
Rdf8 {[%clk 0:03:00.4]} 24. f4 {[%clk 0:01:59.9]} 24... Qb5 {[%clk 0:02:58.4]}
25. Rfe1 {[%clk 0:01:54.9]} 25... R5f7 {[%clk 0:02:49]} 26. h4 {[%clk 0:01:49]}
26... Qh5 {[%clk 0:02:41.3]} 27. Nd2 {[%clk 0:01:38.7]} 27... Rd7 {[%clk
0:02:20.6]} 28. Nf3 {[%clk 0:01:31.8]} 28... Rfd8 {[%clk 0:02:15.8]} 29. Ng5
{[%clk 0:01:25.1]} 29... h6 {[%clk 0:02:06]} 30. Qb3+ {[%clk 0:01:22.5]} 30...
Kh8 {[%clk 0:02:04.1]} 31. Qf3 {[%clk 0:00:58.3]} 31... Qxf3 {[%clk 0:01:57.1]}
32. Nxf3 {[%clk 0:00:57.5]} 32... Kh7 {[%clk 0:01:54.4]} 33. h5 {[%clk
0:00:56.4]} 33... Rd5 {[%clk 0:01:49.6]} 34. g4 {[%clk 0:00:54.6]} 34... Nd4
{[%clk 0:01:47.4]} 35. Nxd4 {[%clk 0:00:50.6]} 35... Rxd4 {[%clk 0:01:47.3]} 36.
Kg3 {[%clk 0:00:49.1]} 36... Rd2 {[%clk 0:01:44.5]} 37. f5 {[%clk 0:00:46.8]}
37... Rxe2 {[%clk 0:01:42.5]} 38. Rxe2 {[%clk 0:00:45.8]} 38... Kg8 {[%clk
0:01:38.8]} 39. Re7 {[%clk 0:00:44.5]} 39... Rd2 {[%clk 0:01:36.8]} 40. Rxc7
{[%clk 0:00:42.4]} 40... b5 {[%clk 0:01:33.6]} 41. b4 {[%clk 0:00:40.3]} 41...
Rd4 {[%clk 0:01:30.8]} 42. c3 {[%clk 0:00:38.8]} 42... Rd3+ {[%clk 0:01:29.7]}
43. Kf4 {[%clk 0:00:38.3]} 43... Kf8 {[%clk 0:01:26.4]} 44. f6 {[%clk
0:00:35.1]} 44... gxf6 {[%clk 0:01:24.1]} 45. Kf5 {[%clk 0:00:34.5]} 45... Rf3+
{[%clk 0:01:22.6]} 46. Kg6 {[%clk 0:00:33.8]} 46... Rf4 {[%clk 0:01:18.7]} 47.
Rxb7 {[%clk 0:00:32.4]} 47... Rxg4+ {[%clk 0:01:17.9]} 48. Kxf6 {[%clk
0:00:31.3]} 48... Rf4+ {[%clk 0:01:17.1]} 49. Kg6 {[%clk 0:00:29.2]} 49... Rc4
{[%clk 0:01:15.5]} 50. Kxh6 {[%clk 0:00:26.1]} 50... Rxc3 {[%clk 0:01:14]} 51.
Rxb5 {[%clk 0:00:25.7]} 51... Kf7 {[%clk 0:01:10]} 52. Rf5+ {[%clk 0:00:23.5]}
52... Ke6 {[%clk 0:01:08.4]} 53. Rf4 {[%clk 0:00:23.1]} 53... Rg3 {[%clk
0:01:06]} 54. Kh7 {[%clk 0:00:20.2]} 54... Ke5 {[%clk 0:01:02.5]} 55. Rf8 {[%clk
0:00:18.1]} 55... Rb3 {[%clk 0:00:57.7]} 56. Rb8 {[%clk 0:00:16.5]} 56... Kf6
{[%clk 0:00:56]} 57. h6 {[%clk 0:00:15.5]} 57... Kf7 {[%clk 0:00:53.7]} 58. b5
{[%clk 0:00:14.4]} 58... Rg3 {[%clk 0:00:46.5]} 59. b6 {[%clk 0:00:13.4]} 59...
Rb3 {[%clk 0:00:44.3]} 60. b7 {[%clk 0:00:12.7]} 60... Rb1 {[%clk 0:00:42.5]}
61. Rg8 {[%clk 0:00:11.8]} 61... Kf6 {[%clk 0:00:39.3]} 62. b8=Q {[%clk
0:00:10]} 62... Rxb8 {[%clk 0:00:33.4]} 63. Rxb8 {[%clk 0:00:09.9]} 63... Ke5
{[%clk 0:00:31.6]} 64. Kg6 {[%clk 0:00:09.2]} 64... Ke4 {[%clk 0:00:31.5]} 65.
h7 {[%clk 0:00:08.8]} 65... Ke3 {[%clk 0:00:31.4]} 66. h8=Q {[%clk 0:00:08.5]}
66... Kd2 {[%clk 0:00:31.3]} 67. Qd4+ {[%clk 0:00:07.8]} 67... Kc2 {[%clk
0:00:30.4]} 68. Rb2+ {[%clk 0:00:07.1]} 68... Kc1 {[%clk 0:00:29.9]} 69. Qd2#
{[%clk 0:00:06.7]} 1-0

[Event "Live Chess"]
[Site "Chess.com"]
[Date "2024.06.02"]
[Round "-"]
[White "Crowded_House"]
[Black "slava_ukr"]
[Result "0-1"]
[WhiteElo "1666"]
[BlackElo "2415"]
[TimeControl "300"]
[EndTime "3:00:21 PDT"]
[Termination "slava_ukr won by resignation"]

1. d4 {[%clk 0:04:57.5]} 1... d5 {[%clk 0:04:56.3]} 2. Bg5 {[%clk 0:04:56.6]}
2... Nf6 {[%clk 0:04:52.6]} 3. e3 {[%clk 0:04:54.1]} 3... Ne4 {[%clk 0:04:46]}
4. Bh4 {[%clk 0:04:51.9]} 4... c5 {[%clk 0:04:43.6]} 5. dxc5 {[%clk 0:04:49.1]}
5... Qa5+ {[%clk 0:04:35.3]} 6. c3 {[%clk 0:04:47.2]} 6... Qxc5 {[%clk
0:04:33.4]} 7. Qd4 {[%clk 0:04:44]} 7... Qxd4 {[%clk 0:04:27.8]} 8. exd4 {[%clk
0:04:40.6]} 8... Nc6 {[%clk 0:04:25.5]} 9. Bd3 {[%clk 0:04:36.4]} 9... Bf5
{[%clk 0:04:20.3]} 10. Bxe4 {[%clk 0:04:29.9]} 10... Bxe4 {[%clk 0:04:19.1]} 11.
f3 {[%clk 0:04:28.7]} 11... Bg6 {[%clk 0:04:18]} 12. Ne2 {[%clk 0:04:23.5]}
12... e6 {[%clk 0:04:16.7]} 13. Nf4 {[%clk 0:04:22.3]} 13... Bd6 {[%clk
0:04:07.3]} 14. Nxg6 {[%clk 0:04:14.7]} 14... hxg6 {[%clk 0:04:06.1]} 15. Bg5
{[%clk 0:04:06.1]} 15... Bxh2 {[%clk 0:03:55.4]} 16. Nd2 {[%clk 0:04:00.9]}
16... f6 {[%clk 0:03:48.2]} 17. Be3 {[%clk 0:03:57.5]} 17... Kf7 {[%clk
0:03:43.1]} 18. Ke2 {[%clk 0:03:55.6]} 18... Bg3 {[%clk 0:03:37.6]} 19. Bf2
{[%clk 0:03:51.5]} 19... Bxf2 {[%clk 0:03:33.1]} 20. Kxf2 {[%clk 0:03:50.1]}
20... g5 {[%clk 0:03:28.9]} 21. Nb3 {[%clk 0:03:46.4]} 21... b6 {[%clk
0:03:27.4]} 22. a3 {[%clk 0:03:41.9]} 22... Rh4 {[%clk 0:03:22.3]} 23. Rxh4
{[%clk 0:03:39.3]} 23... gxh4 {[%clk 0:03:21.1]} 24. Rh1 {[%clk 0:03:35.8]}
24... g5 {[%clk 0:03:20.1]} 25. g3 {[%clk 0:03:31.4]} 25... Rh8 {[%clk
0:03:13.4]} 26. gxh4 {[%clk 0:03:22.6]} 26... Rxh4 {[%clk 0:03:10.2]} 27. Rxh4
{[%clk 0:03:20.2]} 27... gxh4 {[%clk 0:03:09.3]} 28. Kg2 {[%clk 0:03:18.8]}
28... Kg6 {[%clk 0:03:08.3]} 29. Kh3 {[%clk 0:03:18.4]} 29... Kg5 {[%clk
0:03:07.4]} 30. Nc1 {[%clk 0:03:10.1]} 30... Kf4 {[%clk 0:03:05.6]} 31. Kxh4
{[%clk 0:03:04.7]} 31... Kxf3 {[%clk 0:03:04.7]} 32. Nd3 {[%clk 0:02:57.1]}
32... Ke3 {[%clk 0:02:50.4]} 33. Ne1 {[%clk 0:02:47.4]} 33... Kd2 {[%clk
0:02:47.9]} 34. Nf3+ {[%clk 0:02:42.6]} 34... Kc2 {[%clk 0:02:46.8]} 35. Kh5
{[%clk 0:02:41.7]} 35... Kxb2 {[%clk 0:02:44.8]} 36. Kg6 {[%clk 0:02:41.2]}
36... Kxc3 {[%clk 0:02:39.3]} 37. Kxf6 {[%clk 0:02:38.7]} 37... Nxd4 {[%clk
0:02:38.4]} 38. Ne5 {[%clk 0:02:22.7]} 38... Kb3 {[%clk 0:02:35.6]} 39. Nd7
{[%clk 0:02:11.6]} 39... Kxa3 {[%clk 0:02:31.9]} 40. Ke5 {[%clk 0:02:10.7]}
40... Nb3 {[%clk 0:02:24.2]} 41. Kxe6 {[%clk 0:02:08.8]} 41... Nc5+ {[%clk
0:02:22.5]} 42. Nxc5 {[%clk 0:02:07.1]} 42... bxc5 {[%clk 0:02:21.8]} 43. Kxd5
{[%clk 0:02:06.8]} 43... Kb4 {[%clk 0:02:21.1]} 44. Ke4 {[%clk 0:02:04.5]} 44...
a5 {[%clk 0:02:20.2]} 45. Kd3 {[%clk 0:02:03.9]} 45... Kb3 {[%clk 0:02:19.2]}
46. Kd2 {[%clk 0:02:02.2]} 46... c4 {[%clk 0:02:18.3]} 47. Kc1 {[%clk 0:02:01]}
47... Kc3 {[%clk 0:02:17.4]} 48. Kb1 {[%clk 0:01:59.9]} 48... Kd2 {[%clk
0:02:16.6]} 49. Ka2 {[%clk 0:01:58.6]} 49... c3 {[%clk 0:02:15.9]} 50. Ka3
{[%clk 0:01:58.3]} 50... c2 {[%clk 0:02:15.2]} 0-1

[Event "Live Chess"]
[Site "Chess.com"]
[Date "2024.06.02"]
[Round "-"]
[White "ameetghasi100"]
[Black "elis06"]
[Result "0-1"]
[WhiteElo "2772"]
[BlackElo "2291"]
[TimeControl "300"]
[EndTime "3:00:24 PDT"]
[Termination "elis06 won by checkmate"]

1. d3 {[%clk 0:04:55.4]} 1... d5 {[%clk 0:04:58.3]} 2. c3 {[%clk 0:04:55.3]}
2... Nf6 {[%clk 0:04:57.5]} 3. Nf3 {[%clk 0:04:52.1]} 3... c5 {[%clk 0:04:56.7]}
4. e4 {[%clk 0:04:49.2]} 4... dxe4 {[%clk 0:04:55.3]} 5. Ne5 {[%clk 0:04:45.6]}
5... Nbd7 {[%clk 0:04:46.9]} 6. Nc4 {[%clk 0:04:43.3]} 6... exd3 {[%clk
0:04:42.5]} 7. Bxd3 {[%clk 0:04:43.2]} 7... e6 {[%clk 0:04:41.5]} 8. Nbd2 {[%clk
0:04:40.8]} 8... Be7 {[%clk 0:04:40.2]} 9. g4 {[%clk 0:04:31.5]} 9... b5 {[%clk
0:04:31.4]} 10. Ne3 {[%clk 0:04:28.1]} 10... Bb7 {[%clk 0:04:29.2]} 11. Rg1
{[%clk 0:04:25.1]} 11... a6 {[%clk 0:04:26.5]} 12. g5 {[%clk 0:04:22.6]} 12...
Nd5 {[%clk 0:04:24.6]} 13. Ne4 {[%clk 0:04:22.2]} 13... Ne5 {[%clk 0:04:18.8]}
14. Bc2 {[%clk 0:04:15.3]} 14... Nxe3 {[%clk 0:04:14.5]} 15. Bxe3 {[%clk
0:04:15.2]} 15... Qxd1+ {[%clk 0:04:07.5]} 16. Kxd1 {[%clk 0:04:15.1]} 16...
O-O-O+ {[%clk 0:04:05.3]} 17. Ke2 {[%clk 0:04:13.2]} 17... c4 {[%clk 0:03:57]}
18. Bd4 {[%clk 0:04:10.7]} 18... f6 {[%clk 0:03:37.3]} 19. Bxe5 {[%clk
0:04:03.8]} 19... fxe5 {[%clk 0:03:35.9]} 20. a4 {[%clk 0:04:03.3]} 20... Kc7
{[%clk 0:03:26.8]} 21. axb5 {[%clk 0:04:00.7]} 21... axb5 {[%clk 0:03:26.1]} 22.
h4 {[%clk 0:03:57.1]} 22... Rhf8 {[%clk 0:03:24.6]} 23. f3 {[%clk 0:03:54.1]}
23... g6 {[%clk 0:03:20.8]} 24. Rg4 {[%clk 0:03:51.1]} 24... Ra8 {[%clk
0:03:17.3]} 25. Rxa8 {[%clk 0:03:48.3]} 25... Rxa8 {[%clk 0:03:17.2]} 26. Rg1
{[%clk 0:03:47]} 26... Ra2 {[%clk 0:03:16.2]} 27. Rb1 {[%clk 0:03:46.6]} 27...
Bxe4 {[%clk 0:03:12.9]} 28. Bxe4 {[%clk 0:03:43.4]} 28... b4 {[%clk 0:03:11.7]}
29. cxb4 {[%clk 0:03:40.4]} 29... c3 {[%clk 0:03:05.5]} 30. Kd1 {[%clk
0:03:38.2]} 30... Rxb2 {[%clk 0:02:52.5]} 31. Ra1 {[%clk 0:03:32.3]} 31... Bxb4
{[%clk 0:02:45.2]} 32. Ra7+ {[%clk 0:03:28]} 32... Kd6 {[%clk 0:02:44.4]} 33.
Bc2 {[%clk 0:03:25.1]} 33... Bc5 {[%clk 0:02:39.3]} 34. Rxh7 {[%clk 0:03:23.8]}
34... Ra2 {[%clk 0:02:36.7]} 35. h5 {[%clk 0:03:17.7]} 35... Ra1+ {[%clk
0:02:31]} 36. Ke2 {[%clk 0:03:16.1]} 36... gxh5 {[%clk 0:02:30]} 37. g6 {[%clk
0:03:12.9]} 37... Rg1 {[%clk 0:02:27.9]} 38. g7 {[%clk 0:03:08.8]} 38... Bd4
{[%clk 0:02:21.9]} 39. Bb3 {[%clk 0:02:50.5]} 39... e4 {[%clk 0:02:13.5]} 40.
fxe4 {[%clk 0:02:45.8]} 40... Rxg7 {[%clk 0:02:11.2]} 41. Rxh5 {[%clk
0:02:35.5]} 41... e5 {[%clk 0:02:07.7]} 42. Kd3 {[%clk 0:02:28.5]} 42... Rg3+
{[%clk 0:02:06.8]} 43. Kc4 {[%clk 0:02:21.9]} 43... c2 {[%clk 0:02:03.1]} 44.
Bxc2 {[%clk 0:01:58.6]} 44... Rc3+ {[%clk 0:02:01.7]} 45. Kb4 {[%clk 0:01:56]}
45... Rxc2 {[%clk 0:02:01]} 46. Rh6+ {[%clk 0:01:55.5]} 46... Ke7 {[%clk
0:02:00.3]} 47. Rh4 {[%clk 0:01:54]} 47... Kf6 {[%clk 0:01:58.4]} 48. Rh5 {[%clk
0:01:53.2]} 48... Re2 {[%clk 0:01:56.9]} 49. Kc4 {[%clk 0:01:52.4]} 49... Rxe4
{[%clk 0:01:54.2]} 50. Kd5 {[%clk 0:01:52]} 50... Re1 {[%clk 0:01:51.2]} 51. Rh4
{[%clk 0:01:49.6]} 51... Kf5 {[%clk 0:01:40.7]} 52. Rh5+ {[%clk 0:01:42.8]}
52... Kf4 {[%clk 0:01:39.5]} 53. Rh4+ {[%clk 0:01:41.9]} 53... Ke3 {[%clk
0:01:34.5]} 54. Rh3+ {[%clk 0:01:41.1]} 54... Kd2 {[%clk 0:01:32.3]} 55. Rh2+
{[%clk 0:01:38.7]} 55... Re2 {[%clk 0:01:31]} 56. Rh3 {[%clk 0:01:36.3]} 56...
Bc3 {[%clk 0:01:25]} 57. Rh4 {[%clk 0:01:34.9]} 57... Kd3 {[%clk 0:01:22.1]} 58.
Rh1 {[%clk 0:01:29.1]} 58... e4 {[%clk 0:01:17.2]} 59. Rd1+ {[%clk 0:01:28.3]}
59... Bd2 {[%clk 0:01:16]} 60. Ra1 {[%clk 0:01:28]} 60... e3 {[%clk 0:01:14.2]}
61. Ra3+ {[%clk 0:01:27.1]} 61... Kc2 {[%clk 0:01:13.1]} 62. Ra2+ {[%clk
0:01:27]} 62... Kb3 {[%clk 0:01:10.9]} 63. Ra8 {[%clk 0:01:24.5]} 63... Rg2
{[%clk 0:01:09.6]} 64. Rb8+ {[%clk 0:01:23.1]} 64... Kc3 {[%clk 0:01:08.6]} 65.
Ke4 {[%clk 0:01:18.9]} 65... Rg4+ {[%clk 0:01:05.1]} 66. Kf3 {[%clk 0:01:16.5]}
66... Rg7 {[%clk 0:01:03.6]} 67. Rc8+ {[%clk 0:01:13.7]} 67... Kd3 {[%clk
0:01:02.6]} 68. Rd8+ {[%clk 0:01:11.1]} 68... Kc2 {[%clk 0:01:01.7]} 69. Rc8+
{[%clk 0:01:11]} 69... Kd1 {[%clk 0:01:00.3]} 70. Rf8 {[%clk 0:01:08.1]} 70...
e2 {[%clk 0:00:56.2]} 71. Ra8 {[%clk 0:01:03.7]} 71... e1=Q {[%clk 0:00:54.5]}
72. Ra1+ {[%clk 0:01:02.9]} 72... Bc1 {[%clk 0:00:48.2]} 73. Rxc1+ {[%clk
0:00:59.3]} 73... Kxc1 {[%clk 0:00:47.2]} 74. Kf4 {[%clk 0:00:56.4]} 74... Rf7+
{[%clk 0:00:46.6]} 75. Kg5 {[%clk 0:00:53.9]} 75... Qg1+ {[%clk 0:00:45.8]} 76.
Kh6 {[%clk 0:00:53.6]} 76... Rf2 {[%clk 0:00:45]} 77. Kh5 {[%clk 0:00:52.6]}
77... Rh2# {[%clk 0:00:44.4]} 0-1

[Event "Live Chess"]
[Site "Chess.com"]
[Date "2024.06.02"]
[Round "-"]
[White "LL220284LL"]
[Black "Queensandpawns"]
[Result "1-0"]
[WhiteElo "2510"]
[BlackElo "2261"]
[TimeControl "300"]
[EndTime "3:00:26 PDT"]
[Termination "LL220284LL won by checkmate"]

1. Nf3 {[%clk 0:04:58.1]} 1... g5 {[%clk 0:04:58.4]} 2. Nxg5 {[%clk 0:04:57]}
2... e5 {[%clk 0:04:58.1]} 3. d3 {[%clk 0:04:53.2]} 3... Bc5 {[%clk 0:04:56.6]}
4. Nc3 {[%clk 0:04:48.1]} 4... d5 {[%clk 0:04:54.3]} 5. e4 {[%clk 0:04:44.2]}
5... c6 {[%clk 0:04:50.9]} 6. exd5 {[%clk 0:04:33.9]} 6... cxd5 {[%clk 0:04:50]}
7. Qf3 {[%clk 0:04:29.2]} 7... Nf6 {[%clk 0:04:45]} 8. h3 {[%clk 0:04:17.9]}
8... Nc6 {[%clk 0:03:56.7]} 9. Be3 {[%clk 0:04:01.6]} 9... d4 {[%clk 0:03:53.4]}
10. Nce4 {[%clk 0:03:59.5]} 10... Be7 {[%clk 0:03:47.4]} 11. Bd2 {[%clk
0:03:53.8]} 11... h6 {[%clk 0:03:28.9]} 12. Nxf6+ {[%clk 0:03:50.5]} 12... Bxf6
{[%clk 0:03:28.8]} 13. Ne4 {[%clk 0:03:49.8]} 13... Be7 {[%clk 0:03:28.1]} 14.
g4 {[%clk 0:03:45.7]} 14... Be6 {[%clk 0:03:25.9]} 15. Bg2 {[%clk 0:03:43.1]}
15... Qd7 {[%clk 0:03:20.7]} 16. Ng3 {[%clk 0:03:38.1]} 16... O-O-O {[%clk
0:03:18]} 17. a3 {[%clk 0:03:19.9]} 17... Rdf8 {[%clk 0:03:07.8]} 18. Nf5 {[%clk
0:03:10.7]} 18... h5 {[%clk 0:02:59.2]} 19. Nxe7+ {[%clk 0:03:06.3]} 19... Nxe7
{[%clk 0:02:59.1]} 20. Qe2 {[%clk 0:01:42.9]} 20... hxg4 {[%clk 0:02:51.9]} 21.
hxg4 {[%clk 0:01:41.5]} 21... Bxg4 {[%clk 0:02:42]} 22. f3 {[%clk 0:01:35.8]}
22... Rxh1+ {[%clk 0:02:33.1]} 23. Bxh1 {[%clk 0:01:34.6]} 23... Bf5 {[%clk
0:02:24.9]} 24. Qxe5 {[%clk 0:01:28.1]} 24... Nc6 {[%clk 0:02:21.4]} 25. Qf4
{[%clk 0:01:18.6]} 25... Re8+ {[%clk 0:02:15.8]} 26. Kf2 {[%clk 0:01:17]} 26...
Bg6 {[%clk 0:02:00.2]} 27. Re1 {[%clk 0:01:13]} 27... Rxe1 {[%clk 0:01:59.2]}
28. Bxe1 {[%clk 0:01:08.8]} 28... Qh3 {[%clk 0:01:59.1]} 29. Bg2 {[%clk
0:01:06.1]} 29... Qe6 {[%clk 0:01:57.5]} 30. Bd2 {[%clk 0:01:00.8]} 30... b6
{[%clk 0:01:25.2]} 31. Qg5 {[%clk 0:00:54.6]} 31... Kb7 {[%clk 0:01:20.7]} 32.
f4 {[%clk 0:00:53.6]} 32... Ka6 {[%clk 0:01:11.3]} 33. f5 {[%clk 0:00:49.1]}
33... Bxf5 {[%clk 0:00:59.3]} 34. Bxc6 {[%clk 0:00:47.7]} 34... Qxc6 {[%clk
0:00:59.2]} 35. Qxf5 {[%clk 0:00:45.9]} 35... Qxc2 {[%clk 0:00:59.1]} 36. Ke2
{[%clk 0:00:41.3]} 36... Qxb2 {[%clk 0:00:53.9]} 37. Qc8+ {[%clk 0:00:39.8]}
37... Kb5 {[%clk 0:00:52.6]} 38. Qc4# {[%clk 0:00:38.9]} 1-0

[Event "Live Chess"]
[Site "Chess.com"]
[Date "2024.06.02"]
[Round "-"]
[White "vincents82"]
[Black "TigerTank70"]
[Result "1-0"]
[WhiteElo "2015"]
[BlackElo "2222"]
[TimeControl "300"]
[EndTime "3:00:44 PDT"]
[Termination "vincents82 won by resignation"]

1. e4 {[%clk 0:04:57.3]} 1... e5 {[%clk 0:04:58.5]} 2. Nf3 {[%clk 0:04:54.3]}
2... Nc6 {[%clk 0:04:57.6]} 3. Bb5 {[%clk 0:04:52.9]} 3... a6 {[%clk 0:04:55.7]}
4. Ba4 {[%clk 0:04:51.9]} 4... Nf6 {[%clk 0:04:54]} 5. d3 {[%clk 0:04:51]} 5...
b5 {[%clk 0:04:53.1]} 6. Bb3 {[%clk 0:04:50]} 6... Be7 {[%clk 0:04:52]} 7. Nc3
{[%clk 0:04:48.6]} 7... O-O {[%clk 0:04:50.5]} 8. a3 {[%clk 0:04:47.7]} 8... d6
{[%clk 0:04:48.3]} 9. Nd5 {[%clk 0:04:46.6]} 9... Nxd5 {[%clk 0:04:45]} 10. Bxd5
{[%clk 0:04:45.6]} 10... Bb7 {[%clk 0:04:44]} 11. O-O {[%clk 0:04:44.3]} 11...
Na5 {[%clk 0:04:42.7]} 12. Bxb7 {[%clk 0:04:37.8]} 12... Nxb7 {[%clk 0:04:42.6]}
13. Be3 {[%clk 0:04:33.9]} 13... Qd7 {[%clk 0:04:37.9]} 14. d4 {[%clk
0:04:32.5]} 14... exd4 {[%clk 0:04:33.7]} 15. Nxd4 {[%clk 0:04:30.7]} 15... Nc5
{[%clk 0:04:29.9]} 16. Nf5 {[%clk 0:04:29.3]} 16... Bf6 {[%clk 0:04:14.1]} 17.
Bxc5 {[%clk 0:04:26.1]} 17... Bxb2 {[%clk 0:04:09.6]} 18. Rb1 {[%clk 0:04:22.4]}
1-0

[Event "Live Chess"]
[Site "Chess.com"]
[Date "2024.06.02"]
[Round "-"]
[White "MagnersCarlsberg2870"]
[Black "RichardABates"]
[Result "0-1"]
[WhiteElo "1790"]
[BlackElo "2346"]
[TimeControl "300"]
[EndTime "3:00:56 PDT"]
[Termination "RichardABates won by resignation"]

1. d4 {[%clk 0:04:57.2]} 1... Nf6 {[%clk 0:04:57.9]} 2. Nf3 {[%clk 0:04:55.8]}
2... g6 {[%clk 0:04:56.5]} 3. Nc3 {[%clk 0:04:53.6]} 3... d5 {[%clk 0:04:54.9]}
4. Bg5 {[%clk 0:04:51.8]} 4... Bg7 {[%clk 0:04:53.1]} 5. Qd2 {[%clk 0:04:51]}
5... Ne4 {[%clk 0:04:49.8]} 6. Nxe4 {[%clk 0:04:47.8]} 6... dxe4 {[%clk
0:04:48.4]} 7. Ng1 {[%clk 0:04:36.4]} 7... Qxd4 {[%clk 0:04:44.6]} 8. Qxd4
{[%clk 0:04:35.3]} 8... Bxd4 {[%clk 0:04:42.6]} 9. c3 {[%clk 0:04:34.5]} 9...
Bf6 {[%clk 0:04:40.5]} 10. O-O-O {[%clk 0:04:33.4]} 10... Bxg5+ {[%clk
0:04:38.3]} 11. f4 {[%clk 0:04:29.8]} 11... exf3+ {[%clk 0:04:35.5]} 12. Kb1
{[%clk 0:04:28.1]} 0-1